bitfinex-derivatives/quotes_SOLF0:USTF0_20260115
["timestamp","ask_amount","ask_price","bid_price","bid_amount"]
[1768490344113,0.04458004,143.95,143.92,0.04986532]
[1768490344912,9.42432894,143.99,143.92,0.04986532]
[1768490345119,9.42452894,143.98,143.92,0.04986532]
[1768490345326,9.42452894,143.98,143.9,6.2558]
[1768490345516,3.17172894,143.98,143.9,6.2558]
[1768490346123,0.04893369,143.95,143.93,0.05277696]
[1768490346322,3.17172894,143.98,143.93,0.05277696]
[1768490347622,0.05206252,143.97,143.93,0.05277696]
[1768490350323,0.05206252,143.97,143.94,6.2543]
[1768490350523,0.05206252,143.97,143.93,0.05277696]
[1768490354225,0.05206252,143.97,143.89,82.14]
[1768490354425,6.2517,144.01,143.9,97.3186]
[1768490355228,6.2517,144.01,143.94,0.05150147]
[1768490355424,3.17172894,144.02,143.94,0.05150147]
[1768490355821,0.04401012,143.99,143.94,0.05150147]
[1768490356330,6.2509,144.03,143.95,6.2538]
[1768490356829,9.42262894,144.03,143.95,6.2538]
[1768490357031,9.42282894,144.02,143.94,82.12]
[1768490357528,9.42282894,144.02,143.97,0.04862477]
[1768490358040,3.17172894,144.02,143.97,0.04862477]
[1768490358627,1.209005,144.06,143.97,0.04862477]
[1768490358935,4.38073394,144.06,143.95,97.285]
[1768490359133,3.17172894,144.05,143.96,6.2533]
[1768490359328,3.17172894,144.05,143.95,82.12]
[1768490359935,3.2065484,144.01,143.89,102.84499862]
[1768490360135,3.2065484,144.01,143.9,179.4385]
[1768490360335,3.17172894,144.01,143.91,6.2554]
[1768490360528,3.17172894,143.99,143.85,5.52019862]
[1768490360733,97.2613,143.99,143.85,5.52019862]
[1768490361037,3.14797054,143.96,143.91,0.04801651]
[1768490361238,0.05073324,143.93,143.85,5.52019862]
[1768490362437,0.05073324,143.93,143.88,0.04912069]
[1768490363134,3.19870378,143.93,143.88,0.04912069]
[1768490363842,0.05073324,143.93,143.88,0.04912069]
[1768490364531,3.07602353,143.93,143.83,82.12]
[1768490364845,3.02529029,143.92,143.84,6.2586]
[1768490365443,3.02529029,143.94,143.85,6.2581]
[1768490365634,3.02529029,143.96,143.87,0.05013237]
[1768490365834,3.02529029,143.96,143.9,6.256]
[1768490366234,3.02529029,143.96,143.9,6.30941982]
[1768490368048,3.02529029,143.96,143.9,0.05341982]
[1768490368643,3.02529029,143.94,143.86,6.2577]
[1768490368939,3.02529029,143.94,143.84,82.12]
[1768490369340,3.02529029,143.93,143.85,6.2582]
[1768490369941,3.02529029,143.93,143.88,0.05341531]
[1768490371543,9.28039029,143.93,143.88,0.05341531]
[1768490371747,3.02529029,143.91,143.77,97.4035]
[1768490371946,3.02529029,143.89,143.75,5.52019862]
[1768490372147,3.02529029,143.87,143.76,82.12]
[1768490372547,9.28299029,143.87,143.77,6.2616]
[1768490372760,0.04657616,143.83,143.73,97.4327]
[1768490373052,0.04657616,143.83,143.69,339.77007245]
[1768490373053,3.02529029,143.83,143.71,97.4441]
[1768490373241,3.02529029,143.83,143.72,6.2636]
[1768490373447,5.43236445,143.82,143.72,6.2636]
[1768490373755,3.02529029,143.83,143.72,6.2636]
[1768490373947,5.43473785,143.82,143.72,6.2636]
[1768490374153,0.04610085,143.79,143.76,0.04532676]
[1768490375248,0.04610085,143.79,143.7,6.2647]
[1768490375555,3.02529029,143.81,143.71,82.14]
[1768490376054,3.02529029,143.81,143.71,88.4042]
[1768490376551,0.04605763,143.77,143.75,0.04775958]
[1768490376753,0.04605763,143.77,143.71,82.14]
[1768490376950,0.04605763,143.77,143.69,242.30897245]
[1768490377954,0.04605763,143.77,143.72,0.04391873]
[1768490378642,3.02529029,143.82,143.72,0.04391873]
[1768490378855,3.02529029,143.82,143.69,247.82917107]
[1768490379457,87.68019862,143.85,143.72,5.52019862]
[1768490379458,85.18529029,143.85,143.72,5.52019862]
[1768490379756,0.04631338,143.8,143.73,82.16]
[1768490379956,0.04631338,143.8,143.77,0.04961864]
[1768490380148,100.36949029,143.87,143.77,0.04961864]
[1768490380353,3.02529029,143.87,143.73,179.5898]
[1768490380558,3.02529029,143.87,143.75,102.93799862]
[1768490380856,3.02529029,143.87,143.76,97.4135]
[1768490381048,97.3258,143.89,143.75,97.4178]
[1768490381256,3.02529029,143.88,143.81,0.045663]
[1768490381449,0.05032582,143.83,143.81,0.045663]
[1768490381650,100.36119029,143.88,143.81,0.045663]
[1768490381952,3.02529029,143.88,143.81,0.045663]
[1768490382257,6.2564,143.9,143.81,0.045663]
[1768490382459,3.02529029,143.91,143.8,6.2603]
[1768490382849,6.2573,143.88,143.78,88.4412]
[1768490383050,0.04550654,143.87,143.84,0.04565271]
[1768490383256,0.04550654,143.87,143.78,88.4412]
[1768490383457,6.2573,143.88,143.78,88.4412]
[1768490383653,6.2573,143.88,143.78,6.2612]
[1768490383850,6.2573,143.88,143.79,82.18]
[1768490384162,6.2573,143.88,143.78,6.2612]
[1768490384456,6.2573,143.88,143.79,82.18]
[1768490385754,6.2577,143.87,143.78,6.2611]
[1768490385960,6.2577,143.87,143.79,82.18]
[1768490386164,3.02529029,143.93,143.79,82.18]
[1768490386458,3.02529029,143.94,143.85,0.04388274]
[1768490386666,3.02529029,143.94,143.84,82.18]
[1768490387164,97.2793,143.96,143.84,82.18]
[1768490387165,3.02529029,143.97,143.84,82.18]
[1768490387762,3.02529029,143.97,143.89,0.05337509]
[1768490388767,6.2543,143.95,143.89,0.05337509]
[1768490389160,3.02529029,143.95,143.89,0.05337509]
[1768490390468,6.2555,143.92,143.82,11.77959862]
[1768490390670,6.2555,143.92,143.85,82.16]
[1768490390864,6.2555,143.92,143.82,11.77959862]
[1768490390865,3.33235585,143.92,143.83,82.16]
[1768490391064,6.256,143.91,143.83,82.16]
[1768490391675,0.04770997,143.88,143.86,0.04665176]
[1768490395680,0.04770997,143.88,143.82,82.16]
[1768490398285,0.04770997,143.88,143.84,0.04611646]
[1768490399687,6.30490997,143.88,143.84,0.04611646]
[1768490400289,0.04770997,143.88,143.84,0.04611646]
[1768490401075,6.30490997,143.88,143.84,0.04611646]
[1768490401588,6.2555,143.92,143.84,1.44611646]
[1768490401888,3.33235585,143.94,143.84,0.04611646]
[1768490402086,100.62555585,143.94,143.82,5.52019862]
[1768490402392,3.33235585,143.93,143.83,82.16]
[1768490402780,6.2554,143.92,143.84,6.2587]
[1768490403291,3.33235585,143.92,143.82,5.52019862]
[1768490403585,100.62075585,143.95,143.83,82.14]
[1768490403786,3.33235585,143.94,143.86,0.04628612]
[1768490404086,3.33235585,143.94,143.83,82.14]
[1768490404788,6.2554,143.92,143.84,6.2586]
[1768490404989,6.2554,143.92,143.87,0.05310451]
[1768490405188,100.62775585,143.94,143.87,0.05310451]
[1768490405389,6.2563,143.9,143.87,0.05310451]
[1768490405591,6.2563,143.9,143.82,6.2593]
[1768490405792,6.2563,143.9,143.82,88.3993]
[1768490406297,6.2567,143.89,143.8,6.2602]
[1768490406488,3.33235585,143.91,143.81,82.14]
[1768490406680,3.33235585,143.88,143.76,5.52019862]
[1768490406884,3.33235585,143.86,143.77,82.14]
[1768490407695,3.33235585,143.86,143.78,6.2613]
[1768490407886,3.33235585,143.88,143.78,6.2613]
[1768490408194,0.04858136,143.83,143.78,6.2613]
[1768490408488,0.04858136,143.83,143.77,82.14]
[1768490408694,0.04858136,143.83,143.76,6.262]
[1768490408695,0.04858136,143.83,143.76,88.402]
[1768490408995,0.04858136,143.83,143.76,82.14]
[1768490409389,0.04858136,143.83,143.78,0.05223044]
[1768490411196,3.33235585,143.86,143.78,6.31343044]
[1768490411796,3.33235585,143.85,143.78,0.05223044]
[1768490412187,3.33235585,143.85,143.7,8.98353214]
[1768490412391,3.33235585,143.85,143.75,6.2626]
[1768490412392,6.2598,143.82,143.75,6.2626]
[1768490412794,6.2598,143.82,143.72,82.16]
[1768490412992,3.33235585,143.83,143.75,6.2626]
[1768490413792,9.59225585,143.82,143.73,6.2633]
[1768490413983,3.33235585,143.82,143.73,6.2633]
[1768490414183,3.33235585,143.82,143.73,82.16]
[1768490414585,3.33235585,143.8,143.69,242.30897245]
[1768490414789,3.33235585,143.79,143.66,97.4768]
[1768490414994,3.33235585,143.79,143.67,82.16]
[1768490415196,0.0517668,143.74,143.71,0.04700915]
[1768490416401,0.0517668,143.74,143.6,8.98353214]
[1768490416699,3.33235585,143.74,143.6,106.50233214]
[1768490416998,6.2637,143.73,143.62,97.5083]
[1768490417596,0.05320321,143.69,143.66,0.04527422]
[1768490418995,6.2637,143.73,143.66,0.04527422]
[1768490419201,3.33235585,143.72,143.57,123.40033918]
[1768490419395,3.33235585,143.71,143.6,6.269]
[1768490419596,3.33235585,143.68,143.57,16.87560704]
[1768490419893,100.80735585,143.67,143.58,82.18]
[1768490420096,3.33235585,143.67,143.58,82.18]
[1768490420392,100.78995585,143.7,143.61,0.05228493]
[1768490420593,0.04968497,143.64,143.58,82.18]
[1768490420798,3.31522707,143.69,143.58,82.18]
[1768490421000,3.36810975,143.67,143.57,16.87560704]
[1768490421202,3.36810975,143.67,143.58,82.18]
[1768490421395,3.31522707,143.67,143.58,82.18]
[1768490421595,0.05089402,143.64,143.58,82.18]
[1768490422706,3.36612109,143.64,143.57,16.87560704]
[1768490423001,0.05089402,143.64,143.57,16.87560704]
[1768490423598,100.77252707,143.7,143.57,16.87560704]
[1768490423793,3.31522707,143.69,143.57,16.87560704]
[1768490423993,9.58062707,143.69,143.58,6.2698]
[1768490424192,3.26491904,143.72,143.58,97.5346]
[1768490424405,3.26491904,143.72,143.62,6.2681]
[1768490424406,9.52911904,143.72,143.62,6.2681]
[1768490424607,3.26491904,143.75,143.62,82.22]
[1768490425110,3.26491904,143.75,143.66,0.05207336]
[1768490425502,3.26491904,143.75,143.62,82.22]
[1768490425805,6.2633,143.74,143.63,6.2677]
[1768490426100,6.2633,143.74,143.67,0.04635833]
[1768490426300,0.04536127,143.7,143.67,0.04635833]
[1768490427809,6.2633,143.74,143.67,0.04635833]
[1768490428000,6.2625,143.76,143.67,82.28635833]
[1768490428399,6.2625,143.76,143.67,82.24]
[1768490428705,6.2629,143.75,143.67,82.24]
[1768490429107,0.04670848,143.72,143.7,0.04787851]
[1768490429509,100.67521904,143.77,143.7,0.04787851]
[1768490429510,9.52691904,143.77,143.7,0.04787851]
[1768490429804,3.26491904,143.77,143.7,0.04787851]
[1768490430306,3.26491904,143.8,143.7,0.04787851]
[1768490430608,0.04671765,143.76,143.7,97.4511]
[1768490430812,85.50491904,143.83,143.74,0.04491335]
[1768490431014,3.26491904,143.82,143.74,0.04491335]
[1768490431207,3.26491904,143.82,143.73,82.24]
[1768490432002,3.26491904,143.82,143.76,0.04705134]
[1768490432312,0.05188749,143.8,143.76,0.04705134]
[1768490433598,3.31680653,143.8,143.76,0.04705134]
[1768490433804,3.31680653,143.8,143.73,82.24]
[1768490434002,3.26491904,143.8,143.73,82.24]
[1768490434709,3.26491904,143.79,143.69,6.2651]
[1768490435108,0.04798923,143.75,143.73,0.04531112]
[1768490435310,3.26491904,143.81,143.73,0.04531112]
[1768490435714,3.26491904,143.81,143.69,179.6779]
[1768490436510,9.52521904,143.81,143.74,0.04915527]
[1768490436708,3.26491904,143.81,143.74,0.04915527]
[1768490436910,3.26491904,143.84,143.74,0.04915527]
[1768490437109,0.04830902,143.79,143.74,0.04915527]
[1768490437310,0.04830902,143.79,143.78,0.05131536]
[1768490437510,0.04830902,143.79,143.74,82.22]
[1768490438817,0.04830902,143.79,143.75,0.04662627]
[1768490441719,6.259,143.84,143.75,0.04662627]
[1768490441909,3.26491904,143.83,143.75,0.04662627]
[1768490442110,3.26491904,143.83,143.73,82.22]
[1768490442311,3.26491904,143.82,143.73,82.22]
[1768490443019,3.26491904,143.82,143.76,0.04424569]
[1768490443215,9.52481904,143.82,143.76,0.04424569]
[1768490443517,3.26491904,143.81,143.76,0.04424569]
[1768490444021,9.52511904,143.81,143.73,6.2635]
[1768490445420,0.05277839,143.78,143.76,0.04828544]
[1768490446813,0.05277839,143.78,143.72,82.22]
[1768490447319,3.26491904,143.77,143.65,118.3971]
[1768490447618,3.26491904,143.77,143.67,82.22]
[1768490448221,3.26491904,143.77,143.71,0.04625265]
[1768490449712,9.52691904,143.77,143.71,0.04625265]
[1768490450313,3.26491904,143.74,143.63,97.497]
[1768490450517,3.26491904,143.74,143.64,82.22]
[1768490450819,3.26491904,143.74,143.67,6.2661]
[1768490451016,3.26491904,143.74,143.67,82.22]
[1768490451218,3.2419195,143.79,143.67,82.22]
[1768490451420,0.05063437,143.72,143.69,0.04606967]
[1768490451721,3.2419195,143.76,143.67,82.22]
[1768490451924,3.2419195,143.76,143.69,0.04938465]
[1768490453923,0.0468359,143.74,143.69,0.04938465]
[1768490454423,3.2887554,143.74,143.64,82.22]
[1768490454625,3.2419195,143.74,143.64,82.22]
[1768490455523,3.2419195,143.74,143.68,0.04842292]
[1768490455730,3.2419195,143.77,143.68,0.04842292]
[1768490456020,3.2419195,143.77,143.64,179.7118]
[1768490456626,3.2419195,143.77,143.69,0.04814109]
[1768490457424,3.2419195,143.75,143.69,0.04814109]
[1768490457717,1.21131957,143.78,143.63,6.2677]
[1768490457718,3.2419195,143.73,143.63,6.2677]
[1768490458324,3.2419195,143.72,143.63,6.2677]
[1768490458718,3.2419195,143.72,143.66,0.04689036]
[1768490458919,3.2419195,143.71,143.61,6.2685]
[1768490459228,3.2419195,143.71,143.6,82.22]
[1768490459822,3.2419195,143.71,143.62,6.2683]
[1768490460430,3.2419195,143.71,143.65,0.05091872]
[1768490460829,3.2419195,143.71,143.62,6.2683]
[1768490461022,0.04611076,143.69,143.62,6.2683]
[1768490461222,3.28803026,143.69,143.63,6.2678]
[1768490461428,3.2419195,143.73,143.62,97.5073]
[1768490462223,3.2419195,143.73,143.64,97.4923]
[1768490462727,3.2419195,143.73,143.67,6.266]
[1768490463332,3.2419195,143.76,143.67,97.4724]
[1768490463531,3.2419195,143.76,143.66,97.4798]
[1768490463722,3.2419195,143.76,143.7,0.04459347]
[1768490464719,3.28606156,143.74,143.67,6.266]
[1768490464934,3.28606156,143.74,143.65,82.24]
[1768490465131,3.2419195,143.72,143.65,6.2667]
[1768490465332,3.2419195,143.72,143.62,82.24]
[1768490465930,0.04972953,143.68,143.6,97.5217]
[1768490466131,0.04972953,143.68,143.6,82.24]
[1768490467638,3.2419195,143.67,143.63,0.04642506]
[1768490468241,0.04972953,143.68,143.63,0.04642506]
[1768490468733,3.29164903,143.68,143.6,82.24]
[1768490468938,3.2419195,143.66,143.57,16.87560704]
[1768490469726,3.2419195,143.64,143.57,16.87560704]
[1768490470035,0.04917699,143.62,143.59,0.04998342]
[1768490471133,82.24,143.67,143.59,0.04998342]
[1768490471134,3.2419195,143.66,143.59,0.04998342]
[1768490472436,0.05037499,143.64,143.59,0.04998342]
[1768490472940,0.05037499,143.64,143.59,6.31968342]
[1768490473143,0.05037499,143.64,143.59,0.04998342]
[1768490473436,9.5075195,143.69,143.6,1.4]
[1768490473637,9.5075195,143.69,143.59,0.04998342]
[1768490473838,6.2659,143.68,143.58,6.2698]
[1768490474037,3.2419195,143.68,143.58,6.2698]
[1768490474531,0.05105485,143.64,143.58,6.2698]
[1768490474738,0.05105485,143.64,143.59,6.2696]
[1768490474930,0.05105485,143.64,143.58,82.26]
[1768490474931,3.2419195,143.68,143.62,0.05057424]
[1768490475234,3.2419195,143.71,143.62,0.05057424]
[1768490475643,9.5069195,143.7,143.61,6.2686]
[1768490476137,9.5069195,143.7,143.64,0.04892095]
[1768490476337,3.2419195,143.66,143.58,6.2697]
[1768490477325,3.2419195,143.66,143.59,6.2696]
[1768490477532,0.04422662,143.63,143.61,0.05294155]
[1768490480536,3.2419195,143.66,143.61,0.05294155]
[1768490481041,103.00080258,143.7,143.61,0.05294155]
[1768490481042,9.34361734,143.69,143.61,0.05294155]
[1768490481242,3.07791734,143.69,143.61,0.05294155]
[1768490481545,3.07791734,143.69,143.61,6.2687]
[1768490482440,3.07791734,143.69,143.62,6.2683]
[1768490483542,3.07791734,143.68,143.57,7.92788822]
[1768490484945,3.05605219,143.66,143.59,6.2696]
[1768490485945,3.05605219,143.66,143.6,6.2692]
[1768490487050,3.05605219,143.66,143.57,7.92788822]
[1768490487344,0.04573099,143.63,143.57,7.92788822]
[1768490487536,0.04573099,143.63,143.6,6.31485372]
[1768490487733,3.05605219,143.66,143.6,6.31485372]
[1768490488343,8.59945477,143.7,143.61,6.2688]
[1768490488643,8.45045375,143.69,143.61,6.2688]
[1768490488848,3.05605219,143.67,143.64,0.04942571]
[1768490489149,3.05605219,143.67,143.57,7.92788822]
[1768490489947,9.32235219,143.67,143.57,7.92788822]
[1768490490146,185.26120258,143.73,143.58,97.5345]
[1768490490347,9.32185219,143.68,143.58,97.5345]
[1768490491043,3.05605219,143.68,143.62,6.2679]
[1768490491245,3.05605219,143.71,143.62,0.0522425]
[1768490491640,3.05605219,143.7,143.6,82.28]
[1768490491950,3.05605219,143.69,143.6,82.28]
[1768490492342,3.05605219,143.69,143.63,0.04633721]
[1768490492950,9.32225219,143.67,143.6,6.2688]
[1768490493152,3.1069284,143.67,143.57,7.92788822]
[1768490493348,3.05605219,143.67,143.57,7.92788822]
[1768490493646,9.32355219,143.64,143.57,14.19808822]
[1768490493950,3.05605219,143.64,143.57,7.92788822]
[1768490494149,9.37602286,143.62,143.57,7.78004862]
[1768490494652,3.05605219,143.61,143.57,7.78004862]
[1768490496348,0.05157067,143.62,143.57,7.78004862]
[1768490497452,3.05605219,143.69,143.58,0.04815338]
[1768490497653,8.47530715,143.68,143.58,0.04815338]
[1768490497855,5.41925496,143.67,143.57,105.31914862]
[1768490498058,3.05605219,143.68,143.58,97.5326]
[1768490498354,3.05605219,143.68,143.59,97.5286]
[1768490498657,6.2645,143.71,143.63,6.2677]
[1768490498854,10.51445535,143.7,143.63,6.2677]
[1768490499053,5.42382688,143.69,143.63,6.2677]
[1768490499253,9.32095219,143.7,143.61,6.2685]
[1768490499449,5.42774312,143.69,143.6,97.5195]
[1768490499649,3.05605219,143.7,143.6,97.5195]
[1768490499955,5.42922344,143.69,143.63,0.04861258]
[1768490500261,0.04679094,143.67,143.63,0.04861258]
[1768490500560,0.04679094,143.67,143.63,6.2678]
[1768490500855,3.05605219,143.7,143.64,0.05278382]
[1768490501060,5.43143145,143.69,143.64,0.05278382]
[1768490501360,3.05605219,143.7,143.64,0.05278382]
[1768490501553,5.43277155,143.69,143.64,0.05278382]
[1768490501754,3.05605219,143.7,143.64,0.05278382]
[1768490502054,13.58929163,143.69,143.64,0.05278382]
[1768490502257,5.43242095,143.68,143.64,0.05278382]
[1768490502455,5.48215208,143.68,143.61,6.2687]
[1768490502655,0.04973113,143.68,143.61,6.2687]
[1768490502856,3.05605219,143.69,143.59,97.5279]
[1768490503058,3.05605219,143.69,143.62,6.2683]
[1768490503258,3.05605219,143.69,143.6,97.5212]
[1768490503454,91.62025219,143.72,143.63,0.04763611]
[1768490503649,10.53960252,143.71,143.6,97.5212]
[1768490503849,10.53960252,143.7,143.66,0.05154246]
[1768490504063,5.43667571,143.69,143.66,0.05154246]
[1768490504361,3.05605219,143.71,143.66,0.05154246]
[1768490504555,8.15926248,143.7,143.63,6.2678]
[1768490504754,5.43684126,143.69,143.63,6.2678]
[1768490504956,3.05605219,143.7,143.63,6.2678]
[1768490505155,5.43726015,143.69,143.63,6.2678]
[1768490505360,3.05605219,143.7,143.63,6.2678]
[1768490505553,5.43666051,143.69,143.63,6.2678]
[1768490505750,428.53660258,143.8,143.62,97.5065]
[1768490505751,3.05605219,143.73,143.62,97.5065]
[1768490506059,10.53991136,143.72,143.65,0.05274458]
[1768490506260,5.43778639,143.71,143.65,0.05274458]
[1768490506453,3.05605219,143.73,143.65,0.05274458]
[1768490506763,10.54009562,143.72,143.66,6.2664]
[1768490506956,5.43800439,143.71,143.66,6.2664]
[1768490507156,3.05605219,143.72,143.68,0.05135051]
[1768490507354,0.05129998,143.7,143.68,0.05135051]
[1768490507555,3.05605219,143.74,143.68,0.05135051]
[1768490507759,10.55409716,143.73,143.68,0.05135051]
[1768490507958,5.45147006,143.72,143.68,0.05135051]
[1768490508158,3.05605219,143.74,143.68,0.05135051]
[1768490508451,10.55404208,143.73,143.68,6.31695051]
[1768490508654,5.45172667,143.72,143.68,6.31695051]
[1768490508856,3.05605219,143.74,143.68,6.31695051]
[1768490509055,5.45148993,143.73,143.68,6.31695051]
[1768490509255,5.49686195,143.72,143.68,0.05135051]
[1768490509452,0.04537202,143.72,143.68,0.05135051]
[1768490509658,3.10142421,143.72,143.68,0.05135051]
[1768490512870,0.04537202,143.72,143.68,6.31695051]
[1768490513071,3.19478862,143.75,143.68,0.05135051]
[1768490513273,3.19478862,143.73,143.68,0.05135051]
[1768490513773,3.19478862,143.73,143.68,6.31695051]
[1768490514466,5.36568734,143.75,143.69,6.2651]
[1768490514659,5.45419031,143.74,143.69,6.2651]
[1768490514868,0.04395375,143.73,143.69,6.2651]
[1768490515064,0.04395375,143.73,143.7,0.04470603]
[1768490517566,5.36568734,143.72,143.62,112.13688334]
[1768490517865,2.17089872,143.7,143.62,82.26]
[1768490518268,2.17089872,143.7,143.62,84.35388334]
[1768490518468,3.19478862,143.71,143.62,86.52478206]
[1768490518670,3.19478862,143.71,143.65,0.04746217]
[1768490518865,3.19478862,143.71,143.65,6.31446217]
[1768490519774,0.04392531,143.69,143.65,6.31446217]
[1768490521068,3.19478862,143.74,143.65,2.14134551]
[1768490521269,5.44606208,143.73,143.65,2.09388334]
[1768490521576,7.61479562,143.72,143.65,8.36058334]
[1768490521779,2.17089872,143.72,143.65,8.36058334]
[1768490522076,2.17089872,143.72,143.65,2.09388334]
[1768490522267,3.19478862,143.73,143.67,0.04932781]
[1768490522681,3.19478862,143.73,143.68,6.2655]
[1768490522871,3.19478862,143.73,143.67,0.04932781]
[1768490523374,3.19478862,143.76,143.69,6.2651]
[1768490523679,10.80699526,143.75,143.69,6.2651]
[1768490523877,5.36568734,143.75,143.71,0.04944197]
[1768490524678,5.44118996,143.74,143.71,0.04944197]
[1768490524870,5.36568734,143.75,143.71,0.04944197]
[1768490525067,3.19478862,143.72,143.63,2.17089872]
[1768490525380,2.17089872,143.73,143.64,2.09388334]
[1768490525878,5.36568734,143.73,143.64,2.09388334]
[1768490526070,5.36568734,143.73,143.65,6.2667]
[1768490526374,3.19478862,143.72,143.67,0.04522336]
[1768490526568,2.17089872,143.71,143.67,0.04522336]
[1768490526975,0.04728686,143.7,143.67,0.04522336]
[1768490529279,9.50697548,143.7,143.62,6.268]
[1768490529577,3.19478862,143.68,143.59,2.17089872]
[1768490529781,5.36568734,143.68,143.59,4.26478206]
[1768490530680,5.36568734,143.68,143.62,0.05037498]
[1768490530879,11.63158734,143.68,143.62,0.05037498]
[1768490531281,5.36568734,143.68,143.62,0.05037498]
[1768490531781,3.19478862,143.7,143.62,2.14425832]
[1768490532081,3.19478862,143.7,143.62,2.09388334]
[1768490532878,3.19478862,143.7,143.63,6.2679]
[1768490533073,3.19478862,143.7,143.65,0.04638622]
[1768490533478,5.36568734,143.69,143.65,0.04638622]
[1768490535374,3.19478862,143.69,143.65,0.04638622]
[1768490536782,3.39425769,143.72,143.65,0.04638622]
[1768490536783,3.19478862,143.71,143.65,0.04638622]
[1768490536979,5.4514707,143.7,143.65,0.04638622]
[1768490537180,0.04904371,143.69,143.65,0.04638622]
[1768490539572,3.24383233,143.69,143.61,6.2685]
[1768490539786,8.6604165,143.68,143.61,6.2685]
[1768490539980,3.19478862,143.68,143.61,6.2685]
[1768490540685,3.19478862,143.68,143.62,6.2683]
[1768490540884,3.22496098,143.71,143.63,0.04904113]
[1768490541081,0.04722163,143.66,143.63,0.04904113]
[1768490541286,3.22496098,143.7,143.66,0.0439116]
[1768490541490,10.5963421,143.69,143.63,6.2677]
[1768490541689,5.47458515,143.68,143.63,6.2677]
[1768490541985,9.48986098,143.7,143.63,6.2677]
[1768490542186,10.597603,143.69,143.63,6.2677]
[1768490542383,5.47537515,143.68,143.63,6.2677]
[1768490542580,9.48986098,143.7,143.63,6.2677]
[1768490542884,3.27337149,143.68,143.65,0.00728637]
[1768490543085,5.47721084,143.67,143.65,0.00728637]
[1768490543286,3.27337149,143.68,143.65,0.00728637]
[1768490543488,5.47804757,143.67,143.65,0.00728637]
[1768490543789,3.27337149,143.68,143.65,0.00728637]
[1768490543984,5.47851893,143.67,143.65,0.00728637]
[1768490544184,3.27337149,143.68,143.65,0.00728637]
[1768490544383,5.48110908,143.67,143.65,0.00728637]
[1768490544688,3.27337149,143.68,143.65,0.00728637]
[1768490544886,5.48137196,143.67,143.65,0.00728637]
[1768490545086,0.04841051,143.68,143.65,0.00728637]
[1768490545388,3.05133001,143.74,143.65,6.27428637]
[1768490545689,3.05133001,143.72,143.65,6.267]
[1768490545889,5.12738026,143.71,143.63,2.09531961]
[1768490546479,5.12738026,143.71,143.66,0.0484964]
[1768490546691,0.05165906,143.68,143.66,0.0484964]
[1768490547982,0.05165906,143.68,143.6,5.4895773]
[1768490548186,3.05133001,143.7,143.61,2.14381601]
[1768490548485,5.12581944,143.69,143.61,2.14381601]
[1768490548787,3.05133001,143.68,143.61,6.2686]
[1768490549185,3.09796059,143.66,143.6,6.2688]
[1768490550086,3.09796059,143.66,143.58,2.14381601]
[1768490550290,3.09796059,143.66,143.58,6.2698]
[1768490551495,9.36466059,143.66,143.59,6.2695]
[1768490551791,9.31803001,143.66,143.61,0.0506599]
[1768490552088,0.05237413,143.64,143.61,0.0506599]
[1768490553091,3.05133001,143.71,143.61,2.2392711]
[1768490553288,8.1624839,143.7,143.61,2.1886112]
[1768490553488,5.11115389,143.69,143.61,2.1886112]
[1768490554091,3.05133001,143.73,143.65,2.0896425]
[1768490555179,0.05153894,143.7,143.68,0.05145775]
[1768490557295,3.05133001,143.73,143.68,0.05145775]
[1768490557497,9.31383001,143.76,143.68,6.31705775]
[1768490557792,10.50492218,143.75,143.68,6.31705775]
[1768490557993,10.50492218,143.74,143.68,0.05145775]
[1768490558291,5.39221382,143.73,143.68,0.05145775]
[1768490558594,0.04848795,143.73,143.68,0.05145775]
[1768490559494,3.09981796,143.73,143.68,0.05145775]
[1768490563294,0.04848795,143.73,143.68,0.05145775]
[1768490564205,3.09981796,143.73,143.68,0.05145775]
[1768490564601,8.44027364,143.72,143.68,0.05145775]
[1768490564801,3.05133001,143.71,143.63,6.2676]
[1768490565208,8.43954829,143.7,143.63,6.2676]
[1768490565399,8.43954829,143.7,143.62,2.0896425]
[1768490565400,3.05133001,143.7,143.62,2.0896425]
[1768490565602,8.43902154,143.69,143.62,2.0896425]
[1768490565802,3.05133001,143.69,143.62,2.0896425]
[1768490566102,0.047224,143.67,143.64,0.04388705]
[1768490567107,3.09855401,143.67,143.57,11.17430631]
[1768490567302,3.05133001,143.65,143.57,7.78004862]
[1768490567610,10.48854949,143.66,143.57,7.78004862]
[1768490567611,3.05133001,143.63,143.57,7.78004862]
[1768490567815,5.37711208,143.62,143.57,7.78004862]
[1768490568015,3.05133001,143.62,143.57,7.78004862]
[1768490568313,3.05133001,143.62,143.5,97.5847]
[1768490568314,3.10354238,143.61,143.5,3.04635503]